bitfinex-derivatives/quotes_ETHF0:USTF0_20210703
["timestamp","ask_amount","ask_price","bid_price","bid_amount"]
[1625347553452,3.20527,2216.1,2216.0,5.82507]
[1625347555759,56.39677,2216.1,2216.0,5.82507]
[1625347556059,75.37350749,2216.1,2216.0,5.82507]
[1625347556660,22.18200749,2216.1,2216.0,5.82507]
[1625347558938,21.18200749,2216.1,2216.0,5.82507]
[1625347559392,2.20527,2216.1,2216.0,5.82507]
[1625347560594,18.97617247,2216.2,2216.0,5.82507]
[1625347563602,18.97617247,2216.2,2216.1,40.2565]
[1625347563858,18.97617247,2216.2,2216.0,5.82507]
[1625347564309,18.97617247,2216.2,2216.1,47.9353]
[1625347565819,18.97617247,2216.2,2216.0,5.82507]
[1625347566470,18.97462917,2216.3,2216.0,5.82507]
[1625347566571,18.97462917,2216.3,2216.2,55.9962]
[1625347566722,18.97462917,2216.3,2216.0,5.82507]
[1625347567224,18.97380298,2216.2,2216.0,5.82507]
[1625347567325,18.97380298,2216.2,2216.1,45.9231]
[1625347567426,18.97380298,2216.2,2216.0,5.82507]
[1625347567625,18.97366432,2216.3,2216.0,5.82507]
[1625347569280,18.97366432,2216.3,2216.2,2.20527]
[1625347573244,17.62066432,2216.3,2216.2,2.20527]
[1625347574102,17.62066432,2216.3,2216.2,50.43447]
[1625347574358,17.10089635,2216.4,2216.2,50.43447]
[1625347574706,17.10063762,2216.3,2216.2,50.43447]
[1625347574858,17.10063762,2216.3,2216.2,2.20527]
[1625347575964,17.10063762,2216.3,2216.2,58.43597]
[1625347576063,17.10063762,2216.3,2216.2,2.20527]
[1625347576164,17.09973763,2216.4,2216.2,2.20527]
[1625347576470,17.09974868,2216.3,2216.2,2.20527]
[1625347576922,17.0986482,2216.4,2216.2,2.20527]
[1625347577824,17.0986482,2216.4,2216.2,55.75097]
[1625347578873,17.0986482,2216.4,2216.2,2.20527]
[1625347582152,11.75532064,2216.4,2216.2,2.20527]
[1625347582551,17.09778722,2216.4,2216.2,2.20527]
[1625347583101,11.75532064,2216.4,2216.2,2.20527]
[1625347584659,11.75532064,2216.4,2216.3,51.3536]
[1625347584757,11.75532064,2216.4,2216.2,2.20527]
[1625347585659,17.09348483,2216.5,2216.2,2.20527]
[1625347587466,11.75136527,2216.5,2216.2,2.20527]
[1625347587566,11.75136527,2216.5,2216.4,2.20527]
[1625347587666,11.75136527,2216.5,2216.4,53.77507]
[1625347587768,11.75136527,2216.5,2216.4,2.20527]
[1625347588593,12.75136527,2216.5,2216.4,2.20527]
[1625347588688,12.75136527,2216.5,2215.7,19.7882]
[1625347589205,54.3571,2215.8,2215.7,19.7882]
[1625347589300,55.3571,2215.8,2215.7,15.0292]
[1625347589554,55.3571,2215.8,2215.7,17.23447]
[1625347589650,1.0,2215.8,2215.7,17.23447]
[1625347592058,2.20527,2215.9,2215.7,20.47217]
[1625347592161,11.75170137,2216.0,2215.7,20.47217]
[1625347592310,12.75114403,2216.1,2215.7,20.47217]
[1625347593514,12.75114403,2216.1,2215.8,16.302074]
[1625347593616,12.75114403,2216.1,2216.0,2.20527]
[1625347596373,1.0,2216.1,2216.0,2.20527]
[1625347599482,12.75068307,2216.1,2216.0,2.20527]
[1625347602514,11.75068307,2216.1,2216.0,2.20527]
[1625347602811,5.34107635,2216.2,2216.0,2.20527]
[1625347602812,11.75023044,2216.2,2216.0,2.20527]
[1625347602909,11.75023044,2216.2,2216.1,56.3453]
[1625347603663,11.75023044,2216.2,2216.1,58.55057]
[1625347603864,11.75023044,2216.2,2216.1,2.20527]
[1625347605166,10.11363044,2216.2,2216.1,2.20527]
[1625347605265,9.98033044,2216.2,2216.1,18.633939]
[1625347605416,6.6762673,2216.5,2216.1,57.958839]
[1625347605417,8.27799349,2216.4,2216.1,57.958839]
[1625347605717,8.27799349,2216.4,2216.3,5.14467]
[1625347606021,8.27799349,2216.4,2216.3,21.468151]
[1625347606624,8.277346,2216.5,2216.3,21.468151]
[1625347607173,8.27492964,2216.7,2216.3,21.468151]
[1625347607577,8.27471654,2216.8,2216.3,21.468151]
[1625347607674,8.27471654,2216.8,2216.7,2.20527]
[1625347608825,8.27471654,2216.8,2216.7,48.92247]
[1625347608926,8.27471654,2216.8,2216.7,2.20527]
[1625347610831,2.6692634,2216.8,2216.7,2.20527]
[1625347610932,6.33675512,2216.9,2216.7,2.20527]
[1625347611284,8.27024181,2216.8,2216.7,2.20527]
[1625347612786,4.00172991,2216.8,2216.7,2.20527]
[1625347613085,8.26931639,2216.8,2216.7,2.20527]
[1625347614337,4.00172991,2216.8,2216.7,2.20527]
[1625347614741,9.26815023,2216.9,2216.7,2.20527]
[1625347615792,9.26815023,2216.9,2216.8,2.20527]
[1625347616002,5.26743381,2216.9,2216.8,2.20527]
[1625347616502,9.26740907,2216.9,2216.8,2.20527]
[1625347617756,4.99997526,2216.9,2216.8,2.20527]
[1625347617957,4.99997526,2216.9,2216.8,55.46637]
[1625347618057,4.99997526,2216.9,2216.8,2.20527]
[1625347618358,3.99997526,2216.9,2216.8,2.20527]
[1625347618621,8.26477612,2217.0,2216.8,2.20527]
[1625347619473,8.26477612,2217.0,2216.8,3.11237]
[1625347619573,3.99899266,2217.0,2216.8,3.11237]
[1625347620275,4.99899266,2217.0,2216.8,3.11237]
[1625347620976,4.99899266,2217.0,2216.8,53.60077]
[1625347621077,4.99899266,2217.0,2216.8,5.79287]
[1625347622377,4.99899266,2217.0,2216.8,4.88577]
[1625347622477,3.99824051,2216.9,2216.8,4.88577]
[1625347622726,4.9975237,2217.0,2216.8,4.88577]
[1625347623978,4.9975237,2217.0,2216.9,50.654]
[1625347624081,4.9975237,2217.0,2216.9,16.513642]
[1625347627633,4.9975237,2217.0,2216.9,69.644242]
[1625347627733,4.8325237,2217.0,2216.9,69.644242]
[1625347627834,4.3815237,2217.0,2216.9,69.644242]
[1625347627934,3.9975237,2217.0,2216.9,16.513642]
[1625347630041,3.4675237,2217.0,2216.9,16.513642]
[1625347630341,3.2605237,2217.0,2216.9,16.513642]
[1625347630999,4.26186332,2217.3,2216.9,16.513642]
[1625347631095,1.33170324,2217.0,2216.9,16.513642]
[1625347633514,1.33152857,2217.1,2216.9,16.513642]
[1625347633918,1.33152857,2217.1,2217.0,2.20527]
[1625347634164,1.33152857,2217.1,2217.0,18.498381]
[1625347634868,1.33152857,2217.1,2217.0,63.153281]
[1625347635267,1.33135976,2217.2,2217.0,63.153281]
[1625347637572,1.33135976,2217.2,2217.0,18.498381]
[1625347640281,1.33095263,2217.3,2217.0,18.498381]
[1625347641984,1.33095263,2217.3,2217.2,2.20527]
[1625347642282,1.33095263,2217.3,2217.2,18.538712]
[1625347647994,1.33095263,2217.3,2217.2,67.111612]
[1625347650618,1.33015244,2217.4,2217.2,67.111612]
[1625347650717,1.33015244,2217.4,2217.2,18.538712]
[1625347651970,1.33015244,2217.4,2217.2,73.044412]
[1625347652072,1.32969287,2217.3,2217.2,18.538712]
[1625347652521,1.3298061,2217.4,2217.2,18.538712]
[1625347652871,1.32967701,2217.3,2217.2,18.538712]
[1625347654122,1.32967701,2217.3,2217.2,2.20527]
[1625347654423,3.3618,2217.4,2217.2,2.20527]
[1625347654528,42.546,2217.3,2217.2,2.20527]
[1625347654773,42.546,2217.3,2217.0,2.20527]
[1625347654924,3.3618,2217.4,2217.0,2.20527]
[1625347655373,1.32903189,2217.1,2217.0,2.20527]
[1625347655976,3.53430189,2217.1,2217.0,2.20527]
[1625347657030,57.86840189,2217.1,2217.0,2.20527]
[1625347657228,3.53430189,2217.1,2217.0,2.20527]
[1625347659836,2.20527,2217.1,2217.0,2.20527]
[1625347660854,48.85157,2217.1,2217.0,2.20527]
[1625347661244,2.20527,2217.1,2217.0,2.20527]
[1625347662748,43.79797,2217.1,2217.0,2.20527]
[1625347663702,47.57657,2217.1,2217.0,2.20527]
[1625347663903,48.90626757,2217.1,2217.0,2.20527]
[1625347665154,47.57657,2217.1,2217.0,2.20527]
[1625347667724,51.03131265,2217.1,2217.0,2.20527]
[1625347672247,47.57657,2217.1,2217.0,2.20527]
[1625347675656,5.98387,2217.1,2217.0,2.20527]
[1625347675754,2.20527,2217.1,2217.0,2.20527]
[1625347676356,51.40507,2217.1,2217.0,2.20527]
[1625347677574,2.20527,2217.1,2217.0,2.20527]
[1625347677772,5.65455009,2217.1,2217.0,2.20527]
[1625347678829,50.37105009,2217.1,2217.0,2.20527]
[1625347678928,5.65455009,2217.1,2217.0,2.20527]
[1625347679728,5.65455009,2217.1,2217.0,7e-05]
[1625347679978,5.65455009,2217.1,2216.4,14.9798]
[1625347680228,2.20527,2216.5,2216.4,14.9798]
[1625347686088,2.20527,2216.6,2216.4,14.9798]
[1625347689096,2.20527,2216.6,2216.5,16.279294]
[1625347689196,2.20527,2216.6,2216.5,59.165894]
[1625347689297,4.7877706,2216.9,2216.5,59.165894]
[1625347689399,5.31974511,2217.4,2216.5,59.165894]
[1625347689400,4.78800882,2217.0,2216.5,59.165894]
[1625347690201,4.78800882,2217.0,2216.8,2.20527]
[1625347690500,6.99409696,2217.1,2216.8,2.20527]
[1625347692212,9.19936696,2217.1,2216.8,2.20527]
[1625347693170,9.19936696,2217.1,2216.9,16.264545]
[1625347693279,9.19936696,2217.1,2216.9,19.498045]
[1625347693973,59.00996696,2217.1,2216.9,19.498045]
[1625347694075,9.19936696,2217.1,2216.9,19.498045]
[1625347694880,13.46004601,2217.1,2216.9,19.498045]
[1625347695431,9.19936696,2217.1,2216.9,19.498045]
[1625347696736,9.19936696,2217.1,2217.0,48.259]
[1625347696938,4.41054,2217.1,2217.0,48.259]
[1625347697035,4.41054,2217.1,2217.0,64.646661]
[1625347697790,4.41054,2217.1,2217.0,16.387661]
[1625347708790,4.41054,2217.1,2217.0,60.663661]
[1625347709543,4.41054,2217.1,2217.0,16.387661]
[1625347711995,4.41054,2217.1,2217.0,66.879561]
[1625347712097,4.41054,2217.1,2217.0,16.387661]
[1625347713749,4.41054,2217.1,2217.0,19.766261]
[1625347715003,52.74364,2217.1,2217.0,19.766261]
[1625347715103,4.41054,2217.1,2217.0,19.766261]
[1625347716911,4.41054,2217.1,2217.0,62.329861]
[1625347717261,4.41054,2217.1,2217.0,19.766261]
[1625347733885,4.41054,2217.1,2217.0,72.558561]
[1625347734038,4.41054,2217.1,2217.0,19.766261]
[1625347735241,4.41054,2217.1,2217.0,72.563261]
[1625347737645,9.05750801,2217.4,2217.0,72.563261]
[1625347737995,9.05750801,2217.4,2217.1,0.1336462]
[1625347738096,9.06461237,2217.8,2217.1,0.1336462]
[1625347738195,9.06461237,2217.8,2217.7,49.9598]
[1625347738447,9.06461237,2217.8,2217.7,53.2622]
[1625347738547,4.79966461,2217.9,2217.7,74.012336]
[1625347738997,4.79793295,2218.0,2217.7,74.012336]
[1625347740051,4.79793295,2218.0,2217.7,24.052536]
[1625347741101,4.79793295,2218.0,2217.9,38.2359]
[1625347741203,4.79793295,2218.0,2217.7,24.052536]
[1625347741866,4.79793295,2218.0,2217.9,56.1285]
[1625347742212,4.79793295,2218.0,2217.9,72.360134]
[1625347743107,1.33275915,2218.0,2217.9,72.360134]
[1625347743208,4.79578579,2218.1,2217.9,72.360134]
[1625347744561,4.79578579,2218.1,2218.0,2.20527]
[1625347744660,4.79578579,2218.1,2218.0,55.45667]
[1625347744811,4.79578579,2218.1,2218.0,71.718313]
[1625347744911,4.79578579,2218.1,2218.0,18.466913]
[1625347745763,1.33216272,2218.1,2218.0,18.466913]
[1625347746012,3.46119483,2218.2,2218.0,18.466913]
[1625347746013,4.79239879,2218.2,2218.0,18.466913]
[1625347746576,4.79239879,2218.2,2218.1,2.20527]
[1625347746676,4.79239879,2218.2,2218.1,44.14427]
[1625347746877,4.79239879,2218.2,2218.1,60.446637]
[1625347747629,1.33120396,2218.2,2218.1,60.446637]
[1625347748130,1.33120396,2218.2,2218.1,18.507637]
[1625347748832,1.33120396,2218.2,2218.1,62.088137]
[1625347748934,1.33120396,2218.2,2218.1,18.507637]
[1625347750889,3.99154302,2218.2,2218.1,18.507637]
[1625347751092,3.99154302,2218.2,2218.1,62.368937]
[1625347752044,3.98930921,2218.3,2218.1,62.368937]
[1625347752294,3.98930921,2218.3,2218.1,18.507637]
[1625347753345,3.98930921,2218.3,2218.2,39.7806]
[1625347753445,5.85089807,2218.3,2218.2,43.5264]
[1625347753645,5.85089807,2218.3,2218.2,60.008668]
[1625347754299,5.84902291,2218.4,2218.3,43.4636]
[1625347754397,5.84902291,2218.4,2218.2,60.008668]
[1625347754696,5.84902291,2218.4,2218.3,2.20527]
[1625347754948,5.84902291,2218.4,2218.3,18.569369]
[1625347755903,5.84902291,2218.4,2218.3,60.818169]
[1625347756507,5.84902291,2218.4,2218.3,18.569369]
[1625347757053,3.19037613,2218.4,2218.3,18.569369]
[1625347757503,3.19037613,2218.4,2218.3,71.865969]
[1625347757955,3.18836373,2218.5,2218.3,71.865969]
[1625347760361,0.41236373,2218.5,2218.3,71.865969]
[1625347760459,2.6405143,2218.7,2218.3,71.865969]
[1625347760661,2.5674143,2218.7,2218.6,2.20527]
[1625347760763,0.3977143,2218.7,2218.6,2.20527]
[1625347760966,3.45299574,2218.9,2218.6,2.20527]
[1625347760967,2.65598756,2218.9,2218.6,2.20527]
[1625347761064,2.65598756,2218.9,2218.6,18.70589]
[1625347761367,2.24058756,2218.9,2218.6,18.70589]
[1625347761465,2.24058756,2218.9,2218.8,46.0288]
[1625347761565,2.24058756,2218.9,2218.8,48.4718]
[1625347761727,2.24058756,2218.9,2218.8,64.798194]
[1625347762065,3.45150033,2219.3,2218.8,64.798194]
[1625347762268,2.10050033,2219.3,2218.8,64.798194]
[1625347762667,2.10050033,2219.3,2219.2,4.41054]
[1625347762917,2.10050033,2219.3,2219.2,55.64714]
[1625347763018,2.10050033,2219.3,2219.2,4.41054]
[1625347763368,6.4532844,2219.6,2219.2,4.41054]
[1625347764071,4.24797058,2219.5,2219.2,4.41054]
[1625347764481,4.24797058,2219.5,2219.4,39.0867]
[1625347764584,6.45169989,2219.6,2219.4,41.6441]
[1625347764735,6.45169989,2219.6,2219.5,1.40375983]
[1625347765381,6.45169989,2219.6,2219.5,0.33507184]
[1625347765932,2.20527,2219.6,2219.5,0.33507184]
[1625347780421,2.20527,2219.6,2219.3,55.98284105]
[1625347780975,2.20527,2219.4,2219.3,55.98284105]
[1625347790153,4.24057446,2219.9,2219.3,55.98284105]
[1625347790303,4.24057446,2219.9,2219.3,58.43934105]
[1625347791003,2.20527,2219.6,2219.3,58.43934105]
[1625347793009,2.20527,2219.6,2219.5,2.20527]
[1625347795372,2.20527,2219.6,2219.5,1.13671897]
[1625347796174,2.20527,2219.6,2219.5,52.81841897]
[1625347796576,2.20527,2219.6,2219.5,1.13671897]
[1625347798893,2.20527,2219.6,2219.5,53.09831897]
[1625347800597,2.20527,2219.6,2219.5,1.13671897]
[1625347802604,2.20527,2219.6,2219.5,40.26211897]
[1625347803753,2.20527,2219.6,2219.5,1.13671897]
[1625347805512,2.20527,2219.6,2219.5,50.15551897]
[1625347811924,2.20527,2219.6,2219.5,49.08703459]
[1625347815308,2.20527,2219.6,2219.5,0.06823459]
[1625347817216,2.20527,2219.6,2219.5,43.97353459]
[1625347817513,2.20527,2219.6,2219.5,0.06823459]
[1625347818614,6.45463552,2219.6,2219.5,0.06823459]
[1625347819520,2.20527,2219.6,2219.5,40.02143459]
[1625347820173,2.20527,2219.6,2219.5,0.06823459]
[1625347820623,6.45633613,2219.6,2219.5,0.06823459]
[1625347821022,6.45633613,2219.6,2219.5,53.58053459]
[1625347821124,6.45633613,2219.6,2219.5,0.06823459]
[1625347822423,2.20527,2219.6,2219.5,0.06823459]
[1625347822622,2.20527,2219.6,2219.5,56.56863459]
[1625347822725,2.20527,2219.6,2219.5,0.06823459]
[1625347823478,6.45826373,2219.6,2219.5,0.06823459]
[1625347824029,6.45826373,2219.6,2219.5,54.40683459]
[1625347824127,6.45826373,2219.6,2219.5,0.06823459]
[1625347824581,2.20527,2219.6,2219.5,0.06823459]
[1625347828837,2.20527,2219.6,2219.5,39.11703459]
[1625347828989,2.20527,2219.6,2219.5,0.06823459]
[1625347832406,7.52982726,2219.6,2219.5,0.06823459]
[1625347833609,2.20527,2219.6,2219.5,0.06823459]
[1625347833910,7.53088496,2219.6,2219.5,0.06823459]
[1625347834259,7.53088496,2219.6,2219.5,41.77503459]
[1625347834610,2.20527,2219.6,2219.5,41.77503459]
[1625347835517,5.3255094,2219.7,2219.5,41.77503459]
[1625347835867,5.3255094,2219.7,2219.5,0.06823459]
[1625347839025,5.3255094,2219.7,2219.6,16.35044]
[1625347841589,5.3255094,2219.7,2219.6,18.55571]
[1625347841997,5.3255094,2219.7,2219.6,70.35601]
[1625347842100,5.3255094,2219.7,2219.6,18.55571]
[1625347845410,4.2628477,2219.7,2219.6,18.55571]
[1625347847714,7.53447275,2220.0,2219.6,18.55571]
[1625347847715,4.26336777,2219.8,2219.6,18.55571]
[1625347847814,4.26336777,2219.8,2219.7,38.3581]
[1625347847915,4.26336777,2219.8,2219.6,18.55571]
[1625347848165,4.26336777,2219.8,2219.7,16.408765]
[1625347851122,4.2617669,2219.9,2219.7,16.408765]
[1625347851679,4.2617669,2219.9,2219.8,2.20527]
[1625347852027,4.2617669,2219.9,2219.8,18.420435]
[1625347852732,4.2617669,2219.9,2219.8,21.265235]
[1625347855395,4.2617669,2219.9,2219.8,72.971035]
[1625347855904,6.46512158,2220.0,2219.8,72.971035]
[1625347856101,6.46512158,2220.0,2219.8,21.265235]
[1625347860625,2.20527,2220.0,2219.8,21.265235]
[1625347861236,3.45987176,2219.9,2219.8,21.265235]
[1625347864801,5.66393781,2220.0,2219.8,21.265235]
[1625347865251,5.66393781,2220.0,2219.9,16.419752]
[1625347868862,5.66393781,2220.0,2219.9,57.070752]
[1625347868962,5.66393781,2220.0,2219.9,16.419752]
[1625347870069,2.20527,2220.0,2219.9,16.419752]
[1625347871719,5.66312924,2220.0,2219.9,16.419752]
[1625347872320,5.66312924,2220.0,2219.9,64.287152]
[1625347872971,5.66312924,2220.0,2219.9,16.419752]
[1625347875192,3.45785924,2220.0,2219.9,16.419752]
[1625347876201,3.45785924,2220.0,2219.9,20.830292]
[1625347878756,5.66238791,2220.1,2219.9,20.830292]
[1625347878856,5.66238791,2220.1,2220.0,43.5089]
[1625347879511,5.66238791,2220.1,2219.9,4.41054]
[1625347879909,3.45718083,2220.0,2219.9,4.41054]
[1625347880210,3.45718083,2220.0,2219.9,20.776079]
[1625347880311,5.66228677,2220.1,2219.9,20.776079]
[1625347882017,5.66228677,2220.1,2220.0,46.9745]
[1625347882165,5.66228677,2220.1,2219.9,20.776079]
[1625347882365,3.45708608,2220.0,2219.9,4.41054]
[1625347882665,5.66223268,2220.1,2219.9,4.41054]
[1625347882766,5.66223268,2220.1,2219.9,20.760558]
[1625347883366,5.66223268,2220.1,2220.0,45.995]
[1625347883817,5.66223268,2220.1,2219.9,4.41054]
[1625347884519,5.66223268,2220.1,2220.0,16.340562]
[1625347886469,5.66223268,2220.1,2220.0,62.738462]
[1625347888423,5.66223268,2220.1,2220.0,16.340562]
[1625347890480,5.66223268,2220.1,2220.0,57.351162]
[1625347891834,5.66223268,2220.1,2220.0,16.340562]
[1625347892988,2.20527,2220.1,2220.0,16.340562]
[1625347893387,5.66254759,2220.1,2220.0,16.340562]
[1625347894188,2.20527,2220.1,2220.0,16.340562]
[1625347895391,5.66278591,2220.1,2220.0,16.340562]
[1625347895839,5.66278591,2220.1,2220.0,56.255562]
[1625347896943,5.66278591,2220.1,2220.0,16.340562]
[1625347897554,2.20527,2220.1,2220.0,16.340562]
[1625347902461,5.66330391,2220.1,2220.0,16.340562]
[1625347903262,2.20527,2220.1,2220.0,16.340562]
[1625347908919,5.6643452,2220.1,2220.0,16.340562]
[1625347909269,2.20527,2220.1,2220.0,16.340562]
[1625347912030,2.20527,2220.1,2220.0,71.830162]
[1625347912178,2.20527,2220.1,2220.0,16.340562]
[1625347912732,2.20527,2220.1,2220.0,72.598862]
[1625347912980,2.20527,2220.1,2220.0,16.340562]
[1625347913785,2.20527,2220.1,2220.0,57.903662]
[1625347914032,2.20527,2220.1,2220.0,16.340562]
[1625347915034,2.20527,2220.1,2220.0,57.907462]
[1625347915134,2.20527,2220.1,2220.0,16.340562]
[1625347916689,2.20527,2220.1,2220.0,70.586162]
[1625347922567,2.20527,2220.1,2220.0,16.340562]
[1625347923418,6.46768635,2220.1,2220.0,16.340562]
[1625347927278,6.46768635,2220.1,2220.0,54.964462]
[1625347928078,12.59689653,2220.1,2220.0,54.964462]
[1625347928430,6.46768635,2220.1,2220.0,54.964462]
[1625347929178,12.59686807,2220.1,2220.0,54.964462]
[1625347929430,12.59686807,2220.1,2220.0,16.340562]
[1625347930228,10.39159807,2220.1,2220.0,16.340562]
[1625347930329,6.12918172,2220.1,2220.0,16.340562]
[1625347931883,10.39550925,2220.2,2220.0,16.340562]
[1625347933741,10.39550925,2220.2,2220.0,59.001962]
[1625347933838,10.39550925,2220.2,2220.0,16.340562]
[1625347935208,10.39550925,2220.2,2220.1,56.4204]
[1625347935308,9.04450925,2220.2,2220.1,56.4204]
[1625347935516,9.04450925,2220.2,2220.1,72.905283]
[1625347935819,6.13197585,2220.3,2220.1,72.905283]
[1625347936724,6.13197585,2220.3,2220.1,16.484883]
[1625347936922,6.1317713,2220.4,2220.1,16.484883]
[1625347937072,6.1317713,2220.4,2220.0,16.239704]
[1625347937173,6.1317713,2220.4,2220.3,2.20527]
[1625347937271,6.1317713,2220.4,2220.3,42.68817]
[1625347937723,6.1305572,2220.5,2220.3,42.68817]
[1625347939128,6.1305572,2220.5,2220.4,2.20527]
[1625347939627,6.1305572,2220.5,2220.4,4.66137]
[1625347940128,6.12902418,2220.6,2220.4,4.66137]
[1625347940583,7.99435366,2220.6,2220.4,4.66137]
[1625347944891,7.98962045,2220.7,2220.4,4.66137]
[1625347945238,7.98962045,2220.7,2220.6,2.20527]
[1625347945691,7.98687027,2220.8,2220.6,2.20527]
[1625347946692,7.98687027,2220.8,2220.7,51.4997]
[1625347946891,7.98687027,2220.8,2220.6,2.20527]
[1625347947245,7.98385011,2220.9,2220.6,2.20527]
[1625347947344,7.98385011,2220.9,2220.8,2.20527]
[1625347947642,3.45966838,2220.9,2220.8,2.20527]
[1625347948195,7.98385506,2220.9,2220.8,2.20527]
[1625347949700,3.45966838,2220.9,2220.8,2.20527]
[1625347950697,45.98696838,2220.9,2220.8,2.20527]
[1625347950950,3.45966838,2220.9,2220.8,2.20527]
[1625347951050,4.52281073,2220.9,2220.8,2.20527]
[1625347951351,3.45861997,2221.0,2220.8,2.20527]
[1625347951552,48.3496,2220.9,2220.8,2.20527]
[1625347951903,1.8618618,2220.9,2220.8,2.20527]
[1625347952003,4.52166437,2220.9,2220.8,2.20527]
[1625347953563,4.52166437,2220.9,2220.8,56.03947]
[1625347953669,4.52166437,2220.9,2220.8,2.20527]
[1625347954977,4.52033228,2221.0,2220.8,2.20527]
[1625347955074,4.52033228,2221.0,2220.8,47.05217]
[1625347955975,4.52033228,2221.0,2220.8,2.20527]
[1625347958277,1.86041287,2220.9,2220.8,2.20527]
[1625347959027,4.51937017,2221.0,2220.8,2.20527]
[1625347959380,1.86035118,2221.0,2220.8,2.20527]
[1625347960583,4.86232247,2221.1,2220.8,2.20527]
[1625347960584,6.72223571,2221.1,2220.8,2.20527]
[1625347960979,4.06518324,2221.1,2220.8,2.20527]
[1625347961379,4.06518324,2221.1,2221.0,2.20527]
[1625347961531,4.06518324,2221.1,2221.0,4.83287]
[1625347964752,2.20527,2221.1,2221.0,4.83287]
[1625347967521,1.85910096,2221.2,2221.0,4.83287]
[1625347967772,4.06367569,2221.3,2221.0,4.83287]
[1625347968124,1.85840996,2221.2,2221.0,4.83287]
[1625347968822,4.06363765,2221.3,2221.0,4.83287]
[1625347969477,4.06363765,2221.3,2221.2,2.20527]
[1625347970284,2.20527,2221.3,2221.2,2.20527]
[1625347970686,4.063276,2221.3,2221.2,2.20527]
[1625347971035,1.858006,2221.3,2221.2,2.20527]
[1625347971137,1.858006,2221.4,2221.2,2.20527]
[1625347971485,4.063276,2221.4,2221.2,2.20527]
[1625347971586,1.85778832,2221.3,2221.2,2.20527]
[1625347972036,4.06301827,2221.4,2221.2,2.20527]
[1625347972437,1.8577603,2221.3,2221.2,2.20527]
[1625347973338,4.062796,2221.4,2221.2,2.20527]
[1625347975894,2.20527,2221.4,2221.2,2.20527]
[1625347977046,4.06255874,2221.4,2221.2,2.20527]
[1625347977549,2.20527,2221.4,2221.2,2.20527]
[1625347978750,4.06234355,2221.4,2221.2,2.20527]
[1625347979167,2.20527,2221.4,2221.2,2.20527]
[1625347981678,2.20527,2221.4,2221.3,47.6037]
[1625347982075,2.20527,2221.4,2221.2,2.20527]
[1625347984587,1.85707835,2221.5,2221.2,2.20527]
[1625347985636,2.20527,2221.4,2221.3,2.20527]
[1625347990199,1.85707835,2221.5,2221.3,2.20527]
[1625347990951,1.85672565,2221.4,2221.3,2.20527]
[1625347991700,1.85673861,2221.5,2221.3,2.20527]
[1625347991802,2.20527,2221.4,2221.3,2.20527]
[1625347994265,1.85673861,2221.5,2221.3,2.20527]
[1625347995058,1.85673861,2221.5,2221.4,38.8968]
[1625347995358,1.85684114,2221.6,2221.4,38.8968]
[1625347995809,1.85684114,2221.6,2221.5,2.20527]
[1625347996662,4.8579002,2221.7,2221.5,2.20527]
[1625347997713,2.20527,2221.7,2221.5,2.20527]
[1625347998565,2.65311615,2221.6,2221.5,2.20527]
[1625347998873,2.65311615,2221.6,2221.5,46.68787]
[1625347998976,4.85840822,2221.7,2221.5,2.20527]
[1625347999373,1.85722151,2221.6,2221.5,2.20527]
[1625348000178,4.85840822,2221.7,2221.5,2.20527]
[1625348000478,2.65343188,2221.6,2221.5,2.20527]
[1625348001436,1.85732711,2221.6,2221.5,2.20527]
[1625348001833,4.06248567,2221.7,2221.5,2.20527]
[1625348002085,1.85724513,2221.6,2221.5,2.20527]
[1625348005595,2.65353188,2221.7,2221.5,2.20527]
[1625348005894,2.20527,2221.6,2221.5,2.20527]
[1625348006446,4.85944667,2221.6,2221.5,2.20527]
[1625348008247,52.29024667,2221.6,2221.5,2.20527]
[1625348009049,4.85944667,2221.6,2221.5,2.20527]
[1625348010884,2.65417667,2221.6,2221.5,2.20527]
[1625348011287,2.65417667,2221.6,2221.5,46.97857]
[1625348011385,1.85826303,2221.6,2221.5,5.38437]
[1625348013043,1.85826303,2221.6,2221.5,2.20527]
[1625348014739,1.85826303,2221.6,2221.5,58.80847]
[1625348014840,1.85826303,2221.6,2221.5,61.97337]
[1625348016194,6.303e-05,2221.6,2221.5,5.37017]
[1625348016393,3.18742712,2221.7,2221.5,5.37017]
[1625348016496,3.18742712,2221.7,2221.5,2.20527]
[1625348017048,1.3279662,2221.8,2221.5,2.20527]
[1625348017246,2.20527,2222.0,2221.5,2.20527]
[1625348017347,3.45271212,2222.1,2221.5,2.20527]
[1625348017847,2.20527,2222.3,2221.5,2.20527]
[1625348018147,2.20527,2222.3,2222.2,4.41054]
[1625348018952,2.20527,2222.3,2222.2,7.46774]
[1625348020003,48.07327,2222.3,2222.2,7.46774]
[1625348020203,45.868,2222.3,2222.2,7.46774]
[1625348020905,3.45266943,2222.4,2222.2,7.46774]
[1625348021606,54.35786943,2222.4,2222.2,7.46774]
[1625348022007,3.45266943,2222.4,2222.2,7.46774]
[1625348023359,53.846,2222.3,2222.2,7.46774]
[1625348023509,3.45266943,2222.4,2222.2,7.46774]
[1625348023609,6.45478126,2222.6,2222.2,7.46774]
[1625348023610,3.45271359,2222.5,2222.2,7.46774]
[1625348024125,2.20527,2222.6,2222.2,7.46774]
[1625348024223,2.20527,2222.6,2222.5,2.20527]
[1625348025427,5.119445,2222.7,2222.5,2.20527]
[1625348026233,5.119445,2222.7,2222.6,2.20527]
[1625348027036,1.66692241,2222.7,2222.6,2.20527]
[1625348027283,5.11959917,2222.7,2222.6,2.20527]
[1625348027984,1.66692241,2222.7,2222.6,2.20527]
[1625348028838,1.66692241,2222.7,2222.5,2.20527]
[1625348029237,3.45184491,2222.6,2222.5,2.20527]
[1625348029588,5.91562157,2222.7,2222.5,2.20527]
[1625348030189,2.20527,2222.6,2222.5,2.20527]
[1625348030942,6.45397091,2222.6,2222.5,2.20527]
[1625348031140,6.45397091,2222.6,2222.1,2.20527]
[1625348031241,6.45397091,2222.6,2221.2,1.0]
[1625348031342,7.51714834,2222.6,2221.1,14.726]
[1625348031542,3.45273128,2222.2,2221.1,14.726]
[1625348031644,6.83893128,2222.2,2221.1,14.726]
[1625348031992,51.5625,2221.9,2221.1,14.726]